[Event "EYCC Girls U16 2021"]
[Site "Tornelo"]
[Date "2021.10.15"]
[Round "8.8"]
[White "Kara, Gulce Nehir"]
[Black "Perez Garcia, Jimena"]
[Result "1-0"]
[ECO "A45"]
[WhiteElo "1766"]
[BlackElo "1914"]
[Annotator "ChessBase"]
[PlyCount "119"]
[EventDate "2021.10.15"]
[EventType "swiss"]
[EventCountry "NET"]
[SourceTitle "playchess.com"]
[Source "ChessBase"]
[SourceQuality "1"]
[TimeControl "5400+30"]

1. d4 {[%emt 0:00:30]} Nf6 {[%emt 0:00:42]} 2. Bf4 {[%emt 0:00:06]} g6 {[%emt 0:00:09]} 3. Nc3 {[%emt 0:00:08]} d5 {[%emt 0:00:14]} 4. e3 {[%emt 0:00:15]} Bg7 {[%emt 0:00:29]} 5. h4 {[%emt 0:00:09]} h5 {[%emt 0:00:34]} 6. Nf3 {[%emt 0:00:21]} O-O {[%emt 0:01:28]} 7. Ne5 {[%emt 0:00:58]} c5 {[%emt 0:08:03]} 8. Qd2 {[%emt 0:00:50]} Nc6 {[%emt 0:03:17]} 9. dxc5 {[%emt 0:01:24]} Qa5 {[%emt 0:03:35]} 10. Nxc6 {[%emt 0:02:15]} bxc6 {[%emt 0:00:16]} 11. Be5 {[%emt 0:00:26]} Ne4 {[%emt 0:08:42]} 12. Nxe4 {[%emt 0:07:55]} Qxd2+ {[%emt 0:00:12]} 13. Nxd2 {[%emt 0:00:34]} Bxe5 {[%emt 0:00:10]} 14. c3 {[%emt 0:00:35]} Rb8 {[%emt 0:01:09]} 15. O-O-O {[%emt 0:09:23]} Bd7 {[%emt 0:07:25]} 16. Nb3 {[%emt 0:05:01]} a5 {[%emt 0:06:50]} 17. Nxa5 {[%emt 0:10:11]} Ra8 {[%emt 0:01:30]} 18. Nc4 {[%emt 0:01:36]} Bc7 {[%emt 0:09:47]} 19. a3 {[%emt 0:02:57]} Bf5 {[%emt 0:03:07]} 20. Nd2 {[%emt 0:06:10]} Rfb8 {[%emt 0:01:41]} 21. Be2 {[%emt 0:03:29]} Ra5 {[%emt 0:05:23]} 22. b4 {[%emt 0:01:57]} Rxa3 {[%emt 0:07:18]} 23. Kb2 {[%emt 0:00:19]} Ra7 {[%emt 0:00:38]} 24. Ra1 {[%emt 0:00:23]} Rab7 {[%emt 0:00:25]} 25. Ra6 {[%emt 0:01:20]} Be5 {[%emt 0:01:04]} 26. Kb3 {[%emt 0:00:27]} Be6 {[%emt 0:07:25]} 27. Rxc6 {[%emt 0:01:50]} Bg7 {[%emt 0:07:19]} 28. Nf3 {[%emt 0:02:20]} Ra7 {[%emt 0:04:31]} 29. Ra6 {[%emt 0:03:22]} Rc7 {[%emt 0:00:25]} 30. Kc2 {[%emt 0:03:40]} Bc8 {[%emt 0:03:57]} 31. Ra5 {[%emt 0:00:35]} e5 {[%emt 0:01:14]} 32. Rd1 {[%emt 0:05:18]} Bf5+ {[%emt 0:00:35]} 33. Kb3 {[%emt 0:00:54]} Be4 {[%emt 0:03:01]} 34. Ne1 {[%emt 0:02:26]} Bf8 {[%emt 0:00:51]} 35. Ka3 {[%emt 0:01:03]} Rd7 {[%emt 0:01:16]} 36. f3 {[%emt 0:01:19]} Bf5 {[%emt 0:00:06]} 37. Bb5 {[%emt 0:09:20]} Rdd8 {[%emt 0:01:28]} 38. Bc6 {[%emt 0:04:42]} Be6 {[%emt 0:00:28]} 39. Kb2 {[%emt 0:03:34]} d4 {[%emt 0:00:57]} 40. exd4 {[%emt 0:01:44]} exd4 {[%emt 0:00:06]} 41. Rxd4 {[%emt 0:00:30]} Rxd4 {[%emt 0:00:07]} 42. cxd4 {[%emt 0:00:06]} Rxb4+ {[%emt 0:00:04]} 43. Kc3 {[%emt 0:00:07]} Rb3+ {[%emt 0:01:51]} 44. Kc2 {[%emt 0:03:15]} Bg7 {[%emt 0:00:15]} 45. Bd7 {[%emt 0:05:19]} Bxd4 {[%emt 0:01:01]} 46. Bxe6 {[%emt 0:00:05]} Rc3+ {[%emt 0:00:08]} 47. Kd2 {[%emt 0:00:02]} fxe6 {[%emt 0:00:09]} 48. Nd3 {[%emt 0:00:09]} e5 {[%emt 0:00:47]} 49. Ra4 {[%emt 0:01:17]} Rb3 {[%emt 0:01:20]} 50. Rc4 {[%emt 0:00:21]} Kf7 {[%emt 0:00:48]} 51. c6 {[%emt 0:01:38]} Rb8 {[%emt 0:00:07]} 52. f4 {[%emt 0:00:32]} Ke6 {[%emt 0:00:38]} 53. fxe5 {[%emt 0:01:01]} Bxe5 {[%emt 0:00:49]} 54. Re4 {[%emt 0:00:14]} Rc8 {[%emt 0:00:58]} 55. Rxe5+ {[%emt 0:00:11]} Kd6 {[%emt 0:00:18]} 56. Rc5 {[%emt 0:00:05]} Kc7 {[%emt 0:00:35]} 57. Rg5 {[%emt 0:00:25]} Rg8 {[%emt 0:00:42]} 58. Nf4 {[%emt 0:00:12]} Kxc6 {[%emt 0:00:07]} 59. Rxg6+ {[%emt 0:00:07]} Rxg6 {[%emt 0:00:06]} 60. Nxg6 {[%emt 0:00:02]} 1-0

[Event "EYCC Girls U16 2021"]
[Site "Tornelo"]
[Date "2021.10.15"]
[Round "8.9"]
[White "Volovich, Julia"]
[Black "Zabrzanska, Weronika"]
[Result "0-1"]
[ECO "D56"]
[WhiteElo "1742"]
[BlackElo "1892"]
[Annotator "NA"]
[PlyCount "114"]
[EventDate "2021.10.15"]
[EventType "swiss"]
[EventCountry "NET"]
[SourceTitle "playchess.com"]
[Source "ChessBase"]
[SourceQuality "1"]
[TimeControl "5400+30"]

1. d4 {[%emt 0:00:30]} d5 {[%emt 0:00:41]} 2. c4 {[%emt 0:00:05]} e6 {[%emt 0:00:02]} 3. Nc3 {[%emt 0:00:06]} Nf6 {[%emt 0:00:07]} 4. Bg5 {[%emt 0:00:26]} Be7 {[%emt 0:00:08]} 5. e3 {[%emt 0:00:06]} O-O {[%emt 0:00:21]} 6. Nf3 {[%emt 0:00:06]} h6 {[%emt 0:00:17]} 7. Bh4 {[%emt 0:00:06]} Ne4 {[%emt 0:06:24]} 8. Bxe7 {[%emt 0:00:14]} Qxe7 {[%emt 0:00:14]} 9. Rc1 {[%emt 0:00:06]} c6 {[%emt 0:00:51]} 10. g4 {[%emt 0:00:43]} Nd7 {[%emt 0:01:31]} 11. h4 {[%emt 0:00:18]} g6 {[%emt 0:02:12]} 12. Nxe4 {[%emt 0:18:08]} dxe4 {[%emt 0:00:18]} 13. Ne5 {[%emt 0:01:09]} Nxe5 {[%emt 0:10:41]} 14. dxe5 {[%emt 0:00:09]} f5 {[%emt 0:05:39]} 15. c5 {[%emt 0:21:11]} Rd8 {[%emt 0:00:52]} 16. Qc2 {[%emt 0:00:46]} Rd5 {[%emt 0:01:51]} 17. gxf5 {[%emt 0:06:19]} gxf5 {[%emt 0:04:39]} 18. f4 {[%emt 0:13:14]} exf3 {[%emt 0:06:04]} 19. Rg1+ {[%emt 0:01:05]} Kh8 {[%emt 0:14:26]} 20. Qh2 {[%emt 0:03:54]} Rd8 {[%emt 0:03:42]} 21. Rg6 {[%emt 0:11:40]} Kh7 {[%emt 0:04:21]} 22. h5 {[%emt 0:06:45]} Rg8 {[%emt 0:01:07]} 23. Rf6 {[%emt 0:02:08]} Bd7 {[%emt 0:01:26]} 24. Rd1 {[%emt 0:01:26]} Rg5 {[%emt 0:04:50]} 25. Qd2 {[%emt 0:06:10]} Rd8 {[%emt 0:08:53]} 26. Qd6 {[%emt 0:00:14]} Qe8 {[%emt 0:01:32]} 27. Rxe6 {[%emt 0:01:03]} Bxe6 {[%emt 0:00:47]} 28. Qxd8 {[%emt 0:00:09]} Qxd8 {[%emt 0:02:48]} 29. Rxd8 {[%emt 0:00:04]} Rxh5 {[%emt 0:00:02]} 30. Re8 {[%emt 0:01:05]} Bxa2 {[%emt 0:01:54]} 31. Re7+ {[%emt 0:00:13]} Kg6 {[%emt 0:00:13]} 32. Rxb7 {[%emt 0:00:05]} Bd5 {[%emt 0:02:00]} 33. b3 {[%emt 0:03:53]} Rh1 {[%emt 0:02:04]} 34. Rd7 {[%emt 0:00:53]} Bxb3 {[%emt 0:01:46]} 35. Kf2 {[%emt 0:01:19]} Bd5 {[%emt 0:01:01]} 36. e6 {[%emt 0:00:10]} h5 {[%emt 0:03:05]} 37. e7 {[%emt 0:00:28]} Kf7 {[%emt 0:00:15]} 38. Bd3 {[%emt 0:00:47]} Rh2+ {[%emt 0:05:41]} 39. Kg1 {[%emt 0:00:04]} Rg2+ {[%emt 0:00:33]} 40. Kf1 {[%emt 0:00:04]} h4 {[%emt 0:01:06]} 41. Bxf5 {[%emt 0:00:32]} Bc4+ {[%emt 0:01:28]} 42. Bd3 {[%emt 0:00:03]} Be6 {[%emt 0:00:55]} 43. Rd4 {[%emt 0:00:30]} Kxe7 {[%emt 0:00:34]} 44. Rxh4 {[%emt 0:00:09]} Rd2 {[%emt 0:00:19]} 45. Be4 {[%emt 0:00:25]} Bc4+ {[%emt 0:00:29]} 46. Ke1 {[%emt 0:00:18]} f2+ {[%emt 0:00:42]} 47. Kxd2 {[%emt 0:00:04]} f1=Q {[%emt 0:00:05]} 48. Rh7+ {[%emt 0:00:44]} Ke6 {[%emt 0:00:30]} 49. Rxa7 {[%emt 0:01:47]} Qf2+ {[%emt 0:00:21]} 50. Kc3 {[%emt 0:00:06]} Qxe3+ {[%emt 0:00:46]} 51. Kxc4 {[%emt 0:00:05]} Qxe4+ {[%emt 0:00:02]} 52. Kc3 {[%emt 0:00:10]} Qe5+ {[%emt 0:00:12]} 53. Kc4 {[%emt 0:00:11]} Qd5+ {[%emt 0:00:06]} 54. Kb4 {[%emt 0:00:11]} Qd4+ {[%emt 0:00:07]} 55. Kb3 {[%emt 0:00:11]} Qxc5 {[%emt 0:00:05]} 56. Rg7 {[%emt 0:00:10]} Qe3+ {[%emt 0:00:27]} 57. Kc2 {[%emt 0:00:19]} c5 {[%emt 0:00:14]} 0-1

[Event "EYCC Girls U16 2021"]
[Site "Tornelo"]
[Date "2021.10.15"]
[Round "8.10"]
[White "Hertlein, Irena"]
[Black "Mroz, Lena"]
[Result "1-0"]
[ECO "D02"]
[WhiteElo "1741"]
[BlackElo "1775"]
[Annotator "NA"]
[PlyCount "69"]
[EventDate "2021.10.15"]
[EventType "swiss"]
[EventCountry "NET"]
[SourceTitle "playchess.com"]
[Source "ChessBase"]
[SourceQuality "1"]
[TimeControl "5400+30"]

1. d4 {[%emt 0:00:30]} d5 {[%emt 0:00:46]} 2. Nf3 {[%emt 0:00:06]} Nf6 {[%emt 0:01:12]} 3. Bf4 {[%emt 0:00:05]} e6 {[%emt 0:01:48]} 4. e3 {[%emt 0:00:09]} c5 {[%emt 0:00:39]} 5. c3 {[%emt 0:00:05]} Nc6 {[%emt 0:01:30]} 6. Nbd2 {[%emt 0:00:18]} Bd6 {[%emt 0:00:15]} 7. Bg3 {[%emt 0:00:10]} O-O {[%emt 0:02:42]} 8. Bd3 {[%emt 0:00:06]} b6 {[%emt 0:00:30]} 9. e4 {[%emt 0:00:06]} Be7 {[%emt 0:04:41]} 10. e5 {[%emt 0:00:27]} Nh5 {[%emt 0:00:41]} 11. Ng5 {[%emt 0:00:14]} Bxg5 {[%emt 0:03:27]} 12. Qxh5 {[%emt 0:00:05]} g6 {[%emt 0:00:29]} 13. Qe2 {[%emt 0:00:06]} Bh6 {[%emt 0:02:15]} 14. h4 {[%emt 0:02:29]} cxd4 {[%emt 0:06:57]} 15. h5 {[%emt 0:01:24]} Bg7 {[%emt 0:19:55]} 16. Nf3 {[%emt 0:11:42]} dxc3 {[%emt 0:08:50]} 17. bxc3 {[%emt 0:00:07]} f5 {[%emt 0:04:44]} 18. hxg6 {[%emt 0:24:26]} hxg6 {[%emt 0:07:13]} 19. Bf4 {[%emt 0:00:17]} Qc7 {[%emt 0:06:55]} 20. Kf1 {[%emt 0:01:22]} Rd8 {[%emt 0:03:56]} 21. Qe3 {[%emt 0:04:12]} a5 {[%emt 0:04:30]} 22. Re1 {[%emt 0:09:56]} Ba6 {[%emt 0:06:26]} 23. Bxa6 {[%emt 0:01:03]} Rxa6 {[%emt 0:00:06]} 24. Ng5 {[%emt 0:02:07]} Qe7 {[%emt 0:02:47]} 25. Rh7 {[%emt 0:09:55]} d4 {[%emt 0:03:22]} 26. Qf3 {[%emt 0:16:25]} b5 {[%emt 0:00:42]} 27. cxd4 {[%emt 0:03:31]} Nxd4 {[%emt 0:00:24]} 28. Qh3 {[%emt 0:00:10]} Qc7 {[%emt 0:03:30]} 29. Rc1 {[%emt 0:02:51]} Qe7 {[%emt 0:01:05]} 30. Nf3 {[%emt 0:09:10]} Nxf3 {[%emt 0:00:25]} 31. Bh6 {[%emt 0:00:53]} Ng5 {[%emt 0:02:26]} 32. Bxg5 {[%emt 0:00:03]} Rd1+ {[%emt 0:00:44]} 33. Rxd1 {[%emt 0:00:10]} Qxg5 {[%emt 0:00:22]} 34. Rxg7+ {[%emt 0:00:19]} Kxg7 {[%emt 0:00:31]} 35. Rd7+ {[%emt 0:00:03]} 1-0

[Event "EYCC Girls U16 2021"]
[Site "Tornelo"]
[Date "2021.10.15"]
[Round "8.11"]
[White "Tzakosta, Konstantina"]
[Black "Dietz, Kristin"]
[Result "1-0"]
[ECO "B22"]
[WhiteElo "1089"]
[BlackElo "1924"]
[Annotator "ChessBase"]
[PlyCount "83"]
[EventDate "2021.10.15"]
[EventType "swiss"]
[EventCountry "NET"]
[SourceTitle "playchess.com"]
[Source "ChessBase"]
[SourceQuality "1"]
[TimeControl "5400+30"]

1. e4 {[%emt 0:00:30]} c5 {[%emt 0:00:36]} 2. c3 {[%emt 0:00:07]} Nf6 {[%emt 0:00:07]} 3. e5 {[%emt 0:00:06]} Nd5 {[%emt 0:00:06]} 4. d4 {[%emt 0:00:06]} cxd4 {[%emt 0:00:06]} 5. cxd4 {[%emt 0:00:06]} d6 {[%emt 0:00:16]} 6. Nf3 {[%emt 0:00:07]} Nc6 {[%emt 0:00:06]} 7. Bc4 {[%emt 0:00:12]} e6 {[%emt 0:00:06]} 8. Bxd5 {[%emt 0:01:25]} exd5 {[%emt 0:00:12]} 9. h3 {[%emt 0:00:42]} Be7 {[%emt 0:01:10]} 10. O-O {[%emt 0:00:39]} O-O {[%emt 0:01:08]} 11. Nc3 {[%emt 0:00:59]} Be6 {[%emt 0:00:22]} 12. Bf4 {[%emt 0:02:12]} dxe5 {[%emt 0:02:32]} 13. dxe5 {[%emt 0:00:25]} a6 {[%emt 0:02:02]} 14. a3 {[%emt 0:02:27]} Qd7 {[%emt 0:07:15]} 15. Qd3 {[%emt 0:03:03]} Rfd8 {[%emt 0:06:21]} 16. Rad1 {[%emt 0:02:46]} Rac8 {[%emt 0:04:15]} 17. Rd2 {[%emt 0:10:27]} Qc7 {[%emt 0:03:21]} 18. Ng5 {[%emt 0:07:03]} Bxg5 {[%emt 0:02:36]} 19. Bxg5 {[%emt 0:00:10]} Rd7 {[%emt 0:00:34]} 20. f4 {[%emt 0:00:32]} h6 {[%emt 0:04:26]} 21. Bxh6 {[%emt 0:03:08]} gxh6 {[%emt 0:01:11]} 22. f5 {[%emt 0:00:05]} Bxf5 {[%emt 0:05:40]} 23. Qxf5 {[%emt 0:03:36]} Nxe5 {[%emt 0:04:25]} 24. Nxd5 {[%emt 0:01:08]} Qc5+ {[%emt 0:02:55]} 25. Kh1 {[%emt 0:00:54]} Rxd5 {[%emt 0:06:52]} 26. Rxd5 {[%emt 0:00:30]} Qxd5 {[%emt 0:00:06]} 27. Qxc8+ {[%emt 0:00:08]} Kg7 {[%emt 0:00:03]} 28. Qc3 {[%emt 0:04:00]} f6 {[%emt 0:01:21]} 29. Qc7+ {[%emt 0:01:21]} Kg6 {[%emt 0:00:13]} 30. Qc2+ {[%emt 0:00:11]} Kg7 {[%emt 0:00:18]} 31. Rd1 {[%emt 0:00:16]} Qb5 {[%emt 0:01:00]} 32. Qf2 {[%emt 0:03:15]} Qb3 {[%emt 0:02:29]} 33. Rf1 {[%emt 0:01:51]} Qe6 {[%emt 0:01:03]} 34. Qg3+ {[%emt 0:01:35]} Kf7 {[%emt 0:01:17]} 35. Qh4 {[%emt 0:03:45]} Kg7 {[%emt 0:00:10]} 36. Qe4 {[%emt 0:00:29]} Qb6 {[%emt 0:00:58]} 37. Qb4 {[%emt 0:01:12]} Qc7 {[%emt 0:00:17]} 38. Rd1 {[%emt 0:00:46]} Kf7 {[%emt 0:09:22]} 39. Qd6 {[%emt 0:02:59]} Qc2 {[%emt 0:01:53]} 40. Rf1 {[%emt 0:01:30]} Qxb2 {[%emt 0:00:33]} 41. Rxf6+ {[%emt 0:01:32]} Ke8 {[%emt 0:00:22]} 42. Rf8# {[%emt 0:00:15]} 1-0

[Event "EYCC Girls U16 2021"]
[Site "Tornelo"]
[Date "2021.10.15"]
[Round "8.12"]
[White "Sulyok, Eszter"]
[Black "Russeva, Viktoria"]
[Result "1/2-1/2"]
[ECO "A18"]
[WhiteElo "1913"]
[BlackElo "1713"]
[Annotator "ChessBase"]
[PlyCount "153"]
[EventDate "2021.10.15"]
[EventType "swiss"]
[EventCountry "NET"]
[SourceTitle "playchess.com"]
[Source "ChessBase"]
[SourceQuality "1"]
[TimeControl "5400+30"]

1. c4 {[%emt 0:00:30]} Nf6 {[%emt 0:00:38]} 2. Nc3 {[%emt 0:00:07]} e6 {[%emt 0:00:06]} 3. e4 {[%emt 0:00:04]} d5 {[%emt 0:00:12]} 4. e5 {[%emt 0:00:04]} d4 {[%emt 0:00:05]} 5. exf6 {[%emt 0:00:05]} dxc3 {[%emt 0:00:04]} 6. bxc3 {[%emt 0:00:04]} Qxf6 {[%emt 0:00:05]} 7. d4 {[%emt 0:00:08]} b6 {[%emt 0:00:32]} 8. Be2 {[%emt 0:01:30]} Bb7 {[%emt 0:00:24]} 9. Bf3 {[%emt 0:00:43]} Bxf3 {[%emt 0:03:17]} 10. Nxf3 {[%emt 0:00:21]} Bd6 {[%emt 0:02:37]} 11. Qa4+ {[%emt 0:02:10]} c6 {[%emt 0:06:35]} 12. Bg5 {[%emt 0:03:03]} Qf5 {[%emt 0:01:20]} 13. O-O {[%emt 0:01:21]} O-O {[%emt 0:00:38]} 14. Rab1 {[%emt 0:01:25]} Rc8 {[%emt 0:09:38]} 15. Rxb6 {[%emt 0:05:10]} e5 {[%emt 0:08:50]} 16. dxe5 {[%emt 0:03:25]} Bxe5 {[%emt 0:00:19]} 17. Rb7 {[%emt 0:02:59]} a5 {[%emt 0:04:15]} 18. Qa3 {[%emt 0:07:32]} Na6 {[%emt 0:21:57]} 19. Nxe5 {[%emt 0:08:48]} Qxe5 {[%emt 0:00:31]} 20. Be3 {[%emt 0:03:24]} Nc7 {[%emt 0:01:27]} 21. Bd4 {[%emt 0:06:19]} Qf5 {[%emt 0:00:23]} 22. Qc5 {[%emt 0:12:17]} Qg6 {[%emt 0:04:20]} 23. Ra7 {[%emt 0:02:18]} Rxa7 {[%emt 0:03:34]} 24. Qxa7 {[%emt 0:00:13]} Ne6 {[%emt 0:00:29]} 25. Be3 {[%emt 0:02:46]} Qe4 {[%emt 0:03:45]} 26. Qxa5 {[%emt 0:04:09]} Qxc4 {[%emt 0:00:11]} 27. h3 {[%emt 0:03:21]} h6 {[%emt 0:01:24]} 28. a4 {[%emt 0:01:18]} Rb8 {[%emt 0:00:55]} 29. Rc1 {[%emt 0:04:25]} Rb3 {[%emt 0:05:04]} 30. Qa8+ {[%emt 0:00:08]} Kh7 {[%emt 0:00:05]} 31. Qa7 {[%emt 0:01:18]} Nf4 {[%emt 0:01:29]} 32. Bxf4 {[%emt 0:08:58]} Qxf4 {[%emt 0:00:05]} 33. Re1 {[%emt 0:00:07]} Rxc3 {[%emt 0:01:03]} 34. a5 {[%emt 0:00:20]} Ra3 {[%emt 0:00:49]} 35. Qc5 {[%emt 0:00:32]} Ra2 {[%emt 0:01:13]} 36. Rf1 {[%emt 0:04:16]} Qg5 {[%emt 0:03:10]} 37. Qxg5 {[%emt 0:03:09]} hxg5 {[%emt 0:00:06]} 38. Rc1 {[%emt 0:00:04]} Rxa5 {[%emt 0:00:06]} 39. Rxc6 {[%emt 0:00:03]} Ra2 {[%emt 0:00:57]} 40. g3 {[%emt 0:00:27]} f5 {[%emt 0:02:33]} 41. Kg2 {[%emt 0:00:14]} Ra3 {[%emt 0:00:09]} 42. Re6 {[%emt 0:00:37]} f4 {[%emt 0:01:13]} 43. gxf4 {[%emt 0:00:17]} gxf4 {[%emt 0:00:04]} 44. h4 {[%emt 0:00:08]} g6 {[%emt 0:09:11]} 45. Rf6 {[%emt 0:00:49]} g5 {[%emt 0:01:12]} 46. hxg5 {[%emt 0:00:19]} Ra5 {[%emt 0:00:05]} 47. Kf3 {[%emt 0:04:20]} Rxg5 {[%emt 0:00:06]} 48. Kxf4 {[%emt 0:00:03]} Ra5 {[%emt 0:00:05]} 49. Rf5 {[%emt 0:00:52]} Ra6 {[%emt 0:00:11]} 50. Rg5 {[%emt 0:01:44]} Rf6+ {[%emt 0:00:54]} 51. Kg3 {[%emt 0:00:16]} Kh6 {[%emt 0:00:19]} 52. Ra5 {[%emt 0:00:27]} Kg6 {[%emt 0:00:09]} 53. f4 {[%emt 0:00:44]} Rb6 {[%emt 0:00:12]} 54. Kg4 {[%emt 0:00:03]} Kf6 {[%emt 0:00:22]} 55. Rh5 {[%emt 0:00:46]} Kg7 {[%emt 0:02:07]} 56. Rc5 {[%emt 0:05:38]} Kf6 {[%emt 0:00:18]} 57. Rc8 {[%emt 0:00:08]} Ra6 {[%emt 0:00:26]} 58. Rf8+ {[%emt 0:00:24]} Kg7 {[%emt 0:00:21]} 59. Rf5 {[%emt 0:00:20]} Kg6 {[%emt 0:00:09]} 60. Rb5 {[%emt 0:00:41]} Kf6 {[%emt 0:00:08]} 61. Rb4 {[%emt 0:00:42]} Rc6 {[%emt 0:00:13]} 62. Ra4 {[%emt 0:00:36]} Rb6 {[%emt 0:00:06]} 63. f5 {[%emt 0:00:14]} Rb1 {[%emt 0:00:28]} 64. Ra6+ {[%emt 0:00:13]} Kf7 {[%emt 0:00:04]} 65. Ra4 {[%emt 0:01:02]} Rg1+ {[%emt 0:00:12]} 66. Kf4 {[%emt 0:00:06]} Rf1+ {[%emt 0:00:08]} 67. Ke5 {[%emt 0:00:33]} Re1+ {[%emt 0:00:05]} 68. Kd5 {[%emt 0:00:40]} Rd1+ {[%emt 0:00:07]} 69. Rd4 {[%emt 0:00:07]} Rxd4+ {[%emt 0:00:05]} 70. Kxd4 {[%emt 0:00:03]} Kf6 {[%emt 0:00:08]} 71. Ke4 {[%emt 0:00:03]} Kf7 {[%emt 0:00:07]} 72. Ke5 {[%emt 0:00:04]} Ke7 {[%emt 0:00:05]} 73. f6+ {[%emt 0:00:06]} Kf7 {[%emt 0:00:04]} 74. Kf5 {[%emt 0:00:03]} Kf8 {[%emt 0:00:04]} 75. Kg6 {[%emt 0:00:08]} Kg8 {[%emt 0:00:04]} 76. f7+ {[%emt 0:00:15]} Kf8 {[%emt 0:00:05]} 77. Kf6 {[%emt 0:00:03]} 1/2-1/2

[Event "EYCC Girls U16 2021"]
[Site "Tornelo"]
[Date "2021.10.15"]
[Round "9.1"]
[White "Zvereva, Margarita"]
[Black "Allahverdiyeva, Ayan"]
[Result "0-1"]
[ECO "B85"]
[WhiteElo "2013"]
[BlackElo "2051"]
[Annotator "ChessBase"]
[PlyCount "66"]
[EventDate "2021.10.15"]
[EventType "swiss"]
[EventCountry "NET"]
[SourceTitle "playchess.com"]
[Source "ChessBase"]
[SourceQuality "1"]
[TimeControl "5400+30"]

1. e4 {[%emt 0:00:30]} c5 {[%emt 0:00:39]} 2. Nf3 {[%emt 0:00:05]} d6 {[%emt 0:00:44]} 3. d4 {[%emt 0:00:25]} cxd4 {[%emt 0:00:02]} 4. Nxd4 {[%emt 0:00:03]} Nf6 {[%emt 0:00:02]} 5. Nc3 {[%emt 0:00:05]} a6 {[%emt 0:00:01]} 6. Be2 {[%emt 0:04:08]} e6 {[%emt 0:00:15]} 7. a4 {[%emt 0:02:39]} Be7 {[%emt 0:01:09]} 8. O-O {[%emt 0:00:35]} Qc7 {[%emt 0:00:26]} 9. Kh1 {[%emt 0:01:43]} O-O {[%emt 0:00:18]} 10. f4 {[%emt 0:01:17]} Nc6 {[%emt 0:00:07]} 11. Be3 {[%emt 0:01:27]} Bd7 {[%emt 0:00:24]} 12. Nb3 {[%emt 0:00:34]} b6 {[%emt 0:00:17]} 13. Bf3 {[%emt 0:01:50]} Rfe8 {[%emt 0:01:13]} 14. g4 {[%emt 0:14:06]} Bc8 {[%emt 0:02:01]} 15. g5 {[%emt 0:00:22]} Nd7 {[%emt 0:00:03]} 16. Bg2 {[%emt 0:00:27]} Bb7 {[%emt 0:00:19]} 17. Qe2 {[%emt 0:06:09]} Bf8 {[%emt 0:09:00]} 18. Qf2 {[%emt 0:01:39]} Nb4 {[%emt 0:00:21]} 19. Nd4 {[%emt 0:03:17]} g6 {[%emt 0:08:31]} 20. Rae1 {[%emt 0:07:28]} e5 {[%emt 0:10:18]} 21. Nf3 {[%emt 0:19:41]} exf4 {[%emt 0:09:49]} 22. Bxf4 {[%emt 0:00:12]} Rad8 {[%emt 0:05:23]} 23. Qd2 {[%emt 0:04:45]} Nc5 {[%emt 0:11:24]} 24. Nd4 {[%emt 0:02:09]} Qc8 {[%emt 0:08:34]} 25. b3 {[%emt 0:07:45]} Qa8 {[%emt 0:01:21]} 26. e5 {[%emt 0:12:27]} dxe5 {[%emt 0:02:24]} 27. Bxe5 {[%emt 0:02:31]} Rxe5 {[%emt 0:03:18]} 28. Rxe5 {[%emt 0:00:18]} Rxd4 {[%emt 0:01:13]} 29. Qxd4 {[%emt 0:00:42]} Bxg2+ {[%emt 0:00:06]} 30. Kg1 {[%emt 0:00:04]} Bxf1 {[%emt 0:00:13]} 31. Kxf1 {[%emt 0:00:14]} Qh1+ {[%emt 0:05:32]} 32. Kf2 {[%emt 0:00:42]} Qxh2+ {[%emt 0:01:06]} 33. Kf1 {[%emt 0:00:29]} Nc6 {[%emt 0:00:07]} 0-1